[Event "4NCL 2022-2023"]
[Site "Daventry"]
[Date "2023.01.14"]
[Round "3.14"]
[White "Yao, Lan"]
[Black "Bobras, Piotr"]
[Result "1/2-1/2"]
[ECO "B31"]
[WhiteElo "2271"]
[BlackElo "2491"]
[Annotator "TA"]
[PlyCount "88"]
[EventDate "2022.10.20"]
[EventType "team-tourn"]
[EventCountry "ENG"]
[SourceTitle "playchess.com"]
[Source "ChessBase"]
[SourceQuality "1"]
[TimeControl "40/6000+30:2400+30"]

{[%evp 12,88,17,17,34,17,35,19,22,9,15,0,0,-30,-30,-29,-9,-32,-31,-33,-22,-34,-31,-31,-35,-36,-37,-34,-26,-31,-37,-39,-43,-35,-22,-30,-14,-50,-43,-56,-46,-80,-81,-81,-71,-78,-93,-70,-10,-8,0,0,0,0,0,0,0,0,0,0,0,0,0,0,0,0,0,0,0,0,7,0,0,0,0,0,0,0,0]} 1. e4 {[%emt 0:00:03]} c5 {[%emt 0:00:13]} 2. Nf3 {[%emt 0:00:07]} Nc6 {[%emt 0:00:15]} 3. Bb5 {[%emt 0:00:03]} g6 {[%emt 0:00:24]} 4. O-O {[%emt 0:00:14]} Bg7 {[%emt 0:00:05]} 5. Re1 {[%emt 0:00:04]} Nf6 {[%emt 0:00:39]} 6. Bxc6 {[%emt 0:00:17]} dxc6 {[%emt 0:01:47]} 7. d3 {[%emt 0:00:31]} Bg4 {[%emt 0:06:48][%cal Oc5c4] B31: Sicilian: 2...Nc6 3 Bb5 g6.} 8. h3 {[%emt 0:07:01]} Bxf3 {[%emt 0:02:11]} 9. Qxf3 {[%emt 0:00:05]} Nd7 {[%emt 0:01:03][%cal Bf6d7,Bd7f8,Bf8e6,Be6d4][%mdl 32] [#]} 10. Qe2 $146 {[%emt 0:05:00]} ({Predecessor:} 10. a4 a5 11. Nd2 O-O 12. Qe2 Qc7 13. Rf1 e5 14. Nc4 Rae8 15. Bd2 b6 16. c3 {1-0 Ivic,V (2581)-Svane,F (2438) FIDE World Cup Europe Hybrid Qual 2021 (2.2)}) 10... Nf8 {[%emt 0:10:27]} 11. f4 {[%emt 0:14:56]} c4 {[%emt 0:17:45]} 12. Nc3 {[%emt 0:06:31]} (12. dxc4 $5 Bxb2 {[%mdl 64] Decoy} 13. Bxb2 Qb6+ 14. Qe3 Qxb2 15. Nd2 $11) 12... cxd3 {[%emt 0:02:45]} 13. cxd3 {[%emt 0:00:34]} Ne6 {[%emt 0:00:38]} 14. Be3 {[%emt 0:04:38]} Bd4 {[%emt 0:11:59]} 15. Qf2 {[%emt 0:08:44]} Qb6 {[%emt 0:04:54]} 16. Rac1 {[%emt 0:15:13]} (16. Bxd4 {simplifies} Qxd4 17. Qxd4 Nxd4 18. Rac1) 16... Rd8 {[%emt 0:01:48]} 17. f5 {[%emt 0:03:02]} Bxe3 {[%emt 0:01:11]} 18. Rxe3 {[%emt 0:01:23]} ({But not} 18. Qxe3 Nf4 19. Rcd1 (19. Qxb6 axb6 20. Rc2 Rg8 $17) 19... Nxd3 20. Qxb6 axb6 $17) 18... Nd4 {[%emt 0:01:34]} 19. Na4 $1 {[%emt 0:06:27]} Qc7 {[%emt 0:01:56]} 20. Nc3 {[%emt 0:01:59]} Qe5 {[%emt 0:03:59]} 21. Ne2 {[%emt 0:04:54]} Nxe2+ {[%emt 0:07:22]} 22. Qxe2 {[%emt 0:00:21]} O-O {[%emt 0:01:22]} 23. Rf1 {[%emt 0:00:28]} Rd4 {[%emt 0:10:36]} 24. Ref3 {[%emt 0:03:34]} f6 {[%emt 0:01:56]} 25. fxg6 {[%emt 0:00:49]} hxg6 {[%emt 0:00:03]} 26. Re3 {[%emt 0:00:36]} Kf7 {[%emt 0:07:36]} 27. Qg4 {[%emt 0:03:21]} Rfd8 {[%emt 0:00:43]} 28. Rff3 {[%emt 0:04:32][%cal Bf1f3,Bf3g3,Bg3g5][%mdl 32]} Rh8 {[%emt 0:01:18]} 29. Rg3 {[%emt 0:01:43]} g5 {[%emt 0:00:55]} (29... Rg8 $15) 30. Ref3 $11 {[%emt 0:04:47] The position is equal.} Rh4 {[%emt 0:07:04]} (30... Rb4 {keeps more tension.} 31. b3 Qd4+ 32. Kh2 Rb5) 31. Qxg5 {[%emt 0:01:52]} Qxg5 {[%emt 0:00:08]} 32. Rxg5 {[%emt 0:00:02]} Rxd3 $1 {[%emt 0:00:16]} 33. Rxd3 {[%emt 0:00:17][%cal Bf3d3,Bd3d7,Bd7a7][%mdl 32]} fxg5 {[%emt 0:00:02][%mdl 4096] Endgame KR-KR} 34. Rd7 {[%emt 0:00:15]} b5 {[%emt 0:02:06]} 35. Rxa7 {[%emt 0:00:42]} Rxe4 {[%emt 0:00:06]} 36. Kf2 {[%emt 0:00:52]} Rc4 {[%emt 0:00:46]} 37. Kf3 {[%emt 0:03:43]} Kf6 {[%emt 0:00:30]} 38. b3 {[%emt 0:04:34]} Rc2 {[%emt 0:01:42]} 39. g3 {[%emt 0:01:16]} c5 {[%emt 0:01:17]} 40. Kg4 {[%emt 0:02:37]} c4 {[%emt 0:01:42]} 41. bxc4 {[%emt 0:40:33]} Rxc4+ {[%emt 0:00:00]} 42. Kf3 {[%emt 0:00:00]} Rc3+ {[%emt 0:00:00]} 43. Kg4 {[%emt 0:00:00]} Rc4+ {[%emt 0:00:00]} 44. Kf3 {[%emt 0:00:00]} Rc3+ {[%emt 0:00:00] Weighted Error Value: White=0.07 (flawless) /Black=0.06 (flawless)} 1/2-1/2

[Event "4NCL 2022-2023"]
[Site "Daventry"]
[Date "2023.01.14"]
[Round "3.15"]
[White "Kolbus, Dietmar"]
[Black "Hunt, Harriet V"]
[Result "1/2-1/2"]
[ECO "A17"]
[WhiteElo "2292"]
[BlackElo "2348"]
[Annotator "TA RC"]
[PlyCount "91"]
[EventDate "2022.10.20"]
[EventType "team-tourn"]
[EventCountry "ENG"]
[SourceTitle "playchess.com"]
[Source "ChessBase"]
[SourceQuality "1"]
[TimeControl "40/6000+30:2400+30"]

{[%evp 20,91,29,27,23,27,33,26,25,10,27,20,30,17,24,20,21,27,40,33,31,25,35,23,46,27,38,45,46,34,38,0,51,29,63,45,151,151,142,52,41,25,37,19,34,13,21,0,0,0,43,33,14,35,33,15,37,0,0,0,0,0,0,0,0,0,0,0,180,180,180,175,144,11]} 1. Nf3 {[%emt 0:00:03]} Nf6 {[%emt 0:00:16]} 2. c4 {[%emt 0:00:46]} e6 {[%emt 0:00:41]} 3. Nc3 {[%emt 0:02:21]} Bb4 {[%emt 0:01:50]} 4. Qc2 {[%emt 0:02:46]} O-O {[%emt 0:04:31]} 5. a3 {[%emt 0:00:40]} Bxc3 {[%emt 0:00:13]} 6. Qxc3 {[%emt 0:00:10]} b6 {[%emt 0:03:51]} 7. g3 {[%emt 0:00:36]} Bb7 {[%emt 0:00:51]} 8. Bg2 {[%emt 0:00:09]} a5 {[%emt 0:04:32]} 9. b3 {[%emt 0:00:41]} d6 {[%emt 0:01:09]} 10. O-O {[%emt 0:02:58]} Nbd7 {[%emt 0:02:25][%cal Bb8d7,Bd7c5,Bc5b3][%mdl 32]} 11. d3 {[%emt 0:03:26]} Re8 {[%emt 0:04:35] A17: English Opening: 1...Nf6 with ...Bb4.} 12. Bb2 {[%emt 0:08:05]} e5 {[%emt 0:11:08]} 13. e4 {[%emt 0:01:10]} Nc5 {[%emt 0:06:45] [#] White has an edge.} 14. Rfe1 $146 {[%emt 0:06:11]} ({Predecessor:} 14. Nh4) 14... a4 {[%emt 0:08:51]} 15. b4 {[%emt 0:00:21]} Nb3 {[%emt 0:00:07]} 16. Rab1 {[%emt 0:10:17]} c5 {[%emt 0:02:42]} 17. Nd2 {[%emt 0:04:56]} Nd4 {[%emt 0:03:23]} 18. Qc1 {[%emt 0:08:02]} Ra7 {[%emt 0:11:33]} 19. Qd1 {[%emt 0:03:43]} Bc8 {[%emt 0:03:59]} 20. h3 {[%emt 0:00:19]} Ne6 {[%emt 0:03:34]} 21. Nf3 {[%emt 0:02:40]} Bd7 {[%emt 0:04:17]} 22. Ba1 {[%emt 0:04:41]} Qc8 {[%emt 0:02:57]} 23. Kh2 {[%emt 0:06:23]} h6 {[%emt 0:03:37]} 24. Qd2 {[%emt 0:02:44]} Nh7 {[%emt 0:08:59]} 25. Ng1 {[%emt 0:02:14]} Qd8 {[%emt 0:04:28]} (25... Nd4 $11) 26. Bc3 {[%emt 0:07:02]} Nd4 {[%emt 0:02:18]} 27. f4 {[%emt 0:01:42]} f5 {[%emt 0:03:35]} (27... Nb3 $14 28. Qf2 Nf6) 28. bxc5 {[%emt 0:11:27]} bxc5 {[%emt 0:01:58]} 29. Bxd4 {[%emt 0:03:09]} ({White should play} 29. fxe5 $16 {aiming for Bxd4.} dxe5 30. exf5) 29... exd4 $14 {[%emt 0:02:49]} 30. exf5 {[%emt 0:01:29]} Rxe1 {[%emt 0:00:40]} 31. Rxe1 {[%emt 0:00:27] Threatens to win with g4.} Bxf5 {[%emt 0:00:03]} 32. g4 {[%emt 0:00:18]} Bg6 {[%emt 0:00:39]} 33. f5 {[%emt 0:01:56]} Bf7 {[%emt 0:00:05]} 34. Qf4 {[%emt 0:01:10]} Ra6 {[%emt 0:02:10] Black is weak on the light squares} 35. Rb1 {[%emt 0:00:30]} Rb6 {[%emt 0:00:31]} 36. Rxb6 {[%emt 0:01:35]} Qxb6 {[%emt 0:00:04]} 37. h4 {[%emt 0:00:44]} Nf6 {[%emt 0:01:57]} 38. g5 {[%emt 0:00:50]} (38. Nh3 $5 {[%cal Rg4g5]}) 38... Nh5 {[%emt 0:00:05]} 39. Qe4 {[%emt 0:02:52] [#] White threatens Qa8+ and mate.} Qb8 {[%emt 0:01:08] ( -> ...d5+)} 40. Qa8 {[%emt 0:01:40]} Qxa8 {[%emt 0:00:08]} 41. Bxa8 {[%emt 0:40:05]} hxg5 {[%emt 0:00:00]} 42. hxg5 $11 {[%emt 0:00:00] g6 is the strong threat. KBN-KBN} Nf4 {[%emt 0:04:09]} 43. g6 {[%emt 0:00:00]} Be8 {[%emt 0:00:05]} (43... Nxd3 $1 $11 {and Black has nothing to worry.} 44. gxf7+ Kxf7) 44. Be4 $18 {[%emt 0:00:00] White is clearly better.} Kf8 {[%emt 0:03:08]} 45. Kg3 {[%emt 0:00:00]} Nh5+ {[%emt 0:00:08] [#]} 46. Kh4 {[%emt 0:00:00] Weighted Error Value: White=0.10 (very precise) /Black=0.24 (precise)} (46. Kf3 $1 $16) 1/2-1/2

[Event "4NCL 2022-2023"]
[Site "Daventry"]
[Date "2023.01.14"]
[Round "3.16"]
[White "Kalaiyalahan, Akshaya"]
[Black "Terbe, Julianna"]
[Result "1/2-1/2"]
[ECO "A07"]
[WhiteElo "2155"]
[BlackElo "2269"]
[Annotator "TA"]
[PlyCount "140"]
[EventDate "2022.10.20"]
[EventType "team-tourn"]
[EventCountry "ENG"]
[SourceTitle "playchess.com"]
[Source "ChessBase"]
[SourceQuality "1"]
[TimeControl "40/6000+30:2400+30"]

{[%evp 15,140,0,14,0,0,0,-6,-3,0,-10,-11,-26,-42,-44,-12,-29,-21,-21,29,22,22,22,43,38,41,9,9,4,37,10,17,22,53,49,55,29,42,48,25,0,0,0,0,-7,7,0,0,0,0,-17,72,0,31,20,10,0,0,0,0,0,0,15,16,22,19,0,19,25,48,65,128,0,0,0,15,0,0,0,0,0,0,0,0,0,0,0,1096,1072,829,804,990,917,496,0,0,0,0,0,0,0,0,0,0,0,0,0,0,0,0,0,0,0,0,0,0,0,0,0,0,0,0,0,0,0,0,0,0]} 1. Nf3 {[%emt 0:00:03]} d5 {[%emt 0:00:14]} 2. b3 {[%emt 0:00:23]} Bf5 {[%emt 0:01:17]} 3. Bb2 {[%emt 0:00:12]} e6 {[%emt 0:00:05]} 4. g3 {[%emt 0:00:10]} Nf6 {[%emt 0:00:43]} 5. Bg2 {[%emt 0:00:14]} Be7 {[%emt 0:00:11]} 6. O-O {[%emt 0:00:15]} O-O {[%emt 0:00:06]} 7. d3 {[%emt 0:00:13]} h6 {[%emt 0:00:05]} 8. Nbd2 {[%emt 0:00:09]} Nbd7 {[%emt 0:00:22]} 9. Ne5 {[%emt 0:02:53] A07: Réti Opening: New York and Capablanca Systems.} Nxe5 {[%emt 0:05:37]} 10. Bxe5 {[%emt 0:00:06]} c6 {[%emt 0:05:23]} 11. e4 {[%emt 0:05:47] [#]} Bg4 $146 {[%emt 0:08:52][%cal Bf5g4,Bg4h5,Bh5g6][%mdl 32]} ({Predecessor:} 11... Bh7 12. Qe2 dxe4 13. dxe4 Nd7 14. Bb2 Bf6 15. c3 Qc7 16. Nc4 Rfd8 17. Ne3 Be7 {½-½ Henriquez Villagra,C (2587)-Moskalenko,V (2475) Vallfogona rapid op 27th 2019 (6)}) 12. f3 {[%emt 0:02:09]} Bh5 {[%emt 0:00:05]} 13. g4 {[%emt 0:15:13]} Bg6 {[%emt 0:00:07]} 14. Bb2 {[%emt 0:11:28]} dxe4 {[%emt 0:01:26]} 15. dxe4 {[%emt 0:06:40]} Bc5+ {[%emt 0:13:14]} 16. Kh1 {[%emt 0:00:11]} Bd4 {[%emt 0:00:48]} (16... Qc7 $142) 17. Bxd4 $11 {[%emt 0:03:40]} Qxd4 {[%emt 0:00:05]} 18. Nc4 {[%emt 0:00:31]} Rfd8 {[%emt 0:02:09]} 19. Qxd4 {[%emt 0:10:33]} Rxd4 {[%emt 0:00:31]} 20. a4 {[%emt 0:06:26]} (20. Rfd1 $5 {[%cal Rd1d4]} Rad8 21. Rxd4 Rxd4 22. Kg1 $14) 20... Rad8 {[%emt 0:07:31]} 21. a5 {[%emt 0:01:22]} a6 {[%emt 0:00:03]} 22. Rfe1 {[%emt 0:02:46]} h5 {[%emt 0:03:59]} 23. g5 {[%emt 0:07:07]} Ne8 {[%emt 0:01:15]} 24. Bf1 {[%emt 0:03:13]} f6 {[%emt 0:03:14]} 25. gxf6 {[%emt 0:08:29]} (25. Bd3 $5 {[%cal Rg5f6]}) 25... gxf6 {[%emt 0:00:05]} 26. c3 {[%emt 0:03:44]} R4d7 {[%emt 0:02:30]} 27. e5 {[%emt 0:00:35]} Bf5 {[%emt 0:03:54]} 28. Kg1 {[%emt 0:04:31]} Kg7 {[%emt 0:06:13]} 29. f4 {[%emt 0:02:59]} Bc2 {[%emt 0:09:54]} 30. b4 {[%emt 0:00:06]} Nc7 {[%emt 0:00:15]} 31. Rac1 {[%emt 0:05:28]} Bh7 {[%emt 0:03:03]} 32. Be2 {[%emt 0:03:37]} h4 {[%emt 0:03:05]} (32... Kh6 $11 {keeps the balance.}) 33. Bg4 {[%emt 0:03:16]} (33. Kf2 $16) 33... Kf7 {[%emt 0:04:56]} 34. Nd6+ {[%emt 0:00:21][%cal Bc4d6,Bd6b7,Bb7c5][%mdl 32]} Ke7 $1 {[%emt 0:00:27]} 35. Nxb7 {[%emt 0:01:09]} Rg8 {[%emt 0:01:50]} 36. exf6+ $1 {[%emt 0:00:04]} Kxf6 {[%emt 0:00:04]} 37. h3 $36 {[%emt 0:00:06][%mdl 2048] White is more active.} Bf5 {[%emt 0:05:01]} 38. Nc5 {[%emt 0:00:13]} Rdd8 {[%emt 0:06:00]} 39. Ne4+ {[%emt 0:00:17]} Ke7 $1 {[%emt 0:00:04]} (39... Bxe4 40. Rxe4 Rd3 41. Kf2 $16) 40. Ng5 {[%emt 0:00:24]} Bxg4 {[%emt 0:00:18]} (40... Rdf8 $5 {[%cal Rf5g4]}) 41. hxg4 {[%emt 0:40:04]} Rd3 {[%emt 0:43:34] Prevents Re3.} 42. Kf2 {[%emt 0:02:30]} Rg3 $1 {[%emt 0:01:40] [#]} 43. Rg1 {[%emt 0:00:00] White is more active.} (43. Nxe6 $1 $16 Nxe6 44. f5 {[%mdl 64] Pin} R8xg4 45. Rxe6+ Kf7 46. Rxc6) 43... Rxg1 $1 {[%emt 0:00:00]} 44. Rxg1 {[%emt 0:00:00][%mdl 4096] Endgame And now Re1 would win. KRN-KRN} Nd5 {[%emt 0:00:00][%csl LRc3,LRf4]} 45. Kf3 {[%emt 0:00:00]} Rf8 {[%emt 0:00:00]} 46. Nh3 {[%emt 0:00:00]} Nxf4 {[%emt 0:00:00][%mdl 64] [#] Remove Defender} 47. Nxf4 {[%emt 0:00:00] KRN-KR} e5 {[%emt 0:00:00][%mdl 64] Pin} 48. Ke4 {[%emt 0:00:00]} exf4 {[%emt 0:00:00] KR-KR} 49. Kf3 {[%emt 0:00:00] Black must now prevent Rh1.} Kf6 {[%emt 0:00:00]} 50. Re1 {[%emt 0:00:00][%cal Oe1e4]} Kg5 $2 {[%emt 0:00:00][%mdl 8192]} (50... c5 $11) 51. Re5+ $18 {[%emt 0:00:00]} Kg6 {[%emt 0:00:00]} 52. Rh5 {[%emt 0:00:00]} Rd8 {[%emt 0:00:00]} 53. Kxf4 {[%emt 0:00:00]} ({Not} 53. Rxh4 Rd3+ 54. Kxf4 Rxc3 $18) 53... Rd3 {[%emt 0:00:00]} 54. Rxh4 $2 {[%emt 0:00:00]} ({White should play} 54. Ke4 $18 Rxc3 55. Kd4) 54... Rxc3 $11 {[%emt 0:00:00] The position is equal.} 55. Rh5 {[%emt 0:00:00]} Rc4+ {[%emt 0:00:00]} 56. Kf3 {[%emt 0:00:00]} Rc3+ {[%emt 0:00:00]} 57. Kf4 {[%emt 0:00:00]} Rc4+ {[%emt 0:00:00]} 58. Kf3 {[%emt 0:00:00]} Rc3+ {[%emt 0:00:00]} (58... Rxb4 $2 59. Rc5 $18) 59. Ke2 {[%emt 0:00:00] Rc5 would be deadly.} Rc4 {[%emt 0:00:00][%csl LRb4,LRg4]} 60. Rc5 {[%emt 0:00:00]} Rxg4 {[%emt 0:00:00]} 61. Rxc6+ {[%emt 0:00:00]} Kf5 {[%emt 0:00:00]} 62. Rxa6 {[%emt 0:00:00]} (62. Rb6 $5 Ke5 $8 63. b5 (63. Rxa6 Rxb4 64. Rg6 Rb3 $11) 63... axb5 64. Kf3 $11 (64. Rxb5+ Kd6 $11)) 62... Rxb4 {[%emt 0:00:00]} 63. Kd3 {[%emt 0:00:00]} Ke5 {[%emt 0:01:17]} 64. Kc3 {[%emt 0:00:00]} Rh4 {[%emt 0:03:09]} 65. Rg6 {[%emt 0:00:00]} Kd5 {[%emt 0:00:45]} 66. Kb3 {[%emt 0:00:28]} Kc5 {[%emt 0:00:39]} 67. a6 {[%emt 0:00:05] Strongly threatening a7.} Kb5 {[%emt 0:01:07]} 68. a7 {[%emt 0:00:18]} Rb4+ {[%emt 0:00:08]} 69. Kc3 {[%emt 0:00:09]} (69. Ka3 $5 Ra4+ $8 70. Kb3 Rxa7 71. Rg5+ Kc6 72. Kc4 $11) 69... Rc4+ {[%emt 0:01:24]} 70. Kd3 {[%emt 0:00:11]} Ra4 {[%emt 0:00:04] Weighted Error Value: White=0.18 (very precise) /Black=0.11 (very precise)} 1/2-1/2

[Event "4NCL 2022-2023"]
[Site "Daventry"]
[Date "2023.01.14"]
[Round "3.17"]
[White "Makkar, Rajat"]
[Black "Murphy, Conor E"]
[Result "1-0"]
[ECO "C50"]
[WhiteElo "2425"]
[BlackElo "2429"]
[Annotator "TA"]
[PlyCount "83"]
[EventDate "2022.10.20"]
[EventType "team-tourn"]
[EventCountry "ENG"]
[SourceTitle "playchess.com"]
[Source "ChessBase"]
[SourceQuality "1"]
[TimeControl "40/6000+30:2400+30"]

{[%evp 13,83,-51,-42,-63,-11,-38,-29,-22,-17,-17,-9,-40,-39,-36,-40,-37,-50,-43,0,-36,-36,-60,-38,-44,-46,-39,0,0,0,0,0,0,0,-16,-14,-26,0,0,0,0,0,0,0,0,6,0,0,0,0,-461,0,0,0,0,426,418,853,0,844,837,779,748,29988,29989,29989,29990,29990,29991,29993,29994,29995,29996]} 1. e4 {[%emt 0:00:17]} e5 {[%emt 0:00:25]} 2. Nf3 {[%emt 0:00:09]} Nc6 {[%emt 0:00:44]} 3. Bc4 {[%emt 0:00:11]} Bc5 {[%emt 0:00:54]} 4. O-O {[%emt 0:00:52]} Nf6 {[%emt 0:00:35]} 5. d4 {[%emt 0:00:04]} Bxd4 {[%emt 0:01:29]} 6. Nxd4 {[%emt 0:00:08]} Nxd4 {[%emt 0:00:21]} 7. Bg5 {[%emt 0:00:27]} h6 {[%emt 0:00:32]} 8. Bh4 {[%emt 0:00:20] C50: Hungarian Defence and Giuoco Pianissimo.} d6 {[%emt 0:01:15]} (8... Qe7 $1 $15) 9. f4 $1 $11 {[%emt 0:00:33]} Bg4 {[%emt 0:02:04][%cal Bc8g4,Bg4d1,Bd1e2,Be2c4][%mdl 32]} (9... Be6 $5 {[%cal Re6c4]} 10. Na3 Nc6 $11) 10. Bxf6 {[%emt 0:00:25] Black has an edge.} Bxd1 {[%emt 0:00:15]} 11. Bxd8 {[%emt 0:00:06]} Rxd8 {[%emt 0:00:19]} 12. c3 {[%emt 0:06:51][%cal Oc3d4]} (12. Rxd1 $5 Nxc2 13. Nc3 $15 (13. Bb5+ c6 $17)) 12... Be2 {[%emt 0:12:09]} 13. cxd4 {[%emt 0:00:17]} Bxc4 {[%emt 0:01:13]} 14. Rc1 {[%emt 0:00:05]} Ba6 {[%emt 0:10:35]} 15. Rxc7 {[%emt 0:04:11]} exd4 {[%emt 0:07:12][%cal Of7f5]} (15... O-O $5 {[%cal Rd8c8]} 16. fxe5 dxe5 $15) 16. Nd2 {[%emt 0:24:08] [#]} (16. Na3 $5 {[%cal Ra1d1]}) 16... O-O $146 {[%emt 0:07:29]} ({Predecessor:} 16... Rd7 17. Rac1 Ke7 18. Kf2 Rhd8 19. Nf3 d3 20. Ke3 Rxc7 21. Rxc7+ Rd7 22. Rc3 g6 {1-0 Abdusattorov,N (2627)-Grischuk,A (2777) Titled Tuesday intern op 14th July f blitz 2020 (1.2)}) 17. b4 {[%emt 0:01:50]} Rfe8 {[%emt 0:34:09]} 18. a4 {[%emt 0:01:42]} Bd3 {[%emt 0:02:27]} 19. Rxb7 {[%emt 0:02:46]} f5 {[%emt 0:04:47][%cal Bf7f5,Bf5e4,Be4e3,Be3e2][%mdl 32]} (19... Rc8 $5 {[%cal Rc8c2]} 20. e5 (20. Rxa7 Rc2 $17) 20... dxe5 21. fxe5 Rxe5 $15) 20. Rxa7 {[%emt 0:34:26]} (20. exf5 Re2 21. Nf3 Be4 $19) 20... fxe4 {[%emt 0:02:12] White must now prevent ...Bc2.} 21. Nb3 {[%emt 0:00:45]} e3 {[%emt 0:01:41] Threatens to win with ...Re4.} 22. Nxd4 {[%emt 0:08:08]} Re4 {[%emt 0:03:15]} 23. Nf3 {[%emt 0:00:42]} Rxb4 {[%emt 0:01:00]} 24. Re7 {[%emt 0:02:46]} e2 {[%emt 0:01:56]} 25. Kf2 {[%emt 0:01:05]} d5 {[%emt 0:03:10]} (25... Rxf4 $2 26. Ke3 Kf8 27. Ra7 Rxf3+ 28. gxf3 Re8+ 29. Kf2 $18 (29. Kxd3 e1=Q $18)) 26. a5 {[%emt 0:02:15]} Rd6 {[%emt 0:01:58]} (26... Rxf4 27. Ke3 Re4+ 28. Rxe4 dxe4 29. Nd4 $16) 27. g3 {[%emt 0:05:11]} d4 {[%emt 0:01:43]} 28. Rc1 {[%emt 0:00:26]} Bc4 {[%emt 0:05:28]} 29. Re4 {[%emt 0:00:43]} ({But not} 29. Ne5 $2 d3 30. Nxc4 (30. Re8+ $2 Kh7 $19) 30... Rxc4 31. Rxc4 d2 32. Rc8+ (32. Kxe2 d1=Q+ 33. Ke3 Rd3+ 34. Ke4 Qe2+ {[%mdl 64] Skewer} 35. Kf5 Qh5+ {[%mdl 64] Skewer} 36. Ke6 Qd5#) 32... Kh7 $19) (29. f5 {feels hotter.} d3 30. Re4 Bd5 31. Rxb4 Bxf3 32. Rb2) 29... Ba6 {[%emt 0:00:24]} 30. Rc7 {[%emt 0:01:44]} Rb1 {[%emt 0:00:59] ...d3 is the strong threat.} 31. Re8+ {[%emt 0:02:34]} Kh7 {[%emt 0:00:02] Strongly threatening ...d3.} 32. Ree7 $1 {[%emt 0:00:38]} Rf1+ {[%emt 0:02:09]} 33. Kg2 {[%emt 0:00:04]} Rxf3 $2 {[%emt 0:01:30][%mdl 8192]} 34. Kxf3 {[%emt 0:00:11][%mdl 4096] Endgame KRR-KRB} d3 {[%emt 0:00:11]} (34... Kh8 $142) 35. Rxg7+ $18 {[%emt 0:00:15]} Kh8 {[%emt 0:00:01]} 36. Rge7 {[%emt 0:01:55][%cal Re7e8]} Rd8 {[%emt 0:00:27] Repels Re8+} 37. f5 $1 {[%emt 0:03:33][%cal Bf4f5,Bf5f6][%mdl 32]} d2 {[%emt 0:01:10]} 38. Rh7+ {[%emt 0:00:46] White mates.} Kg8 {[%emt 0:00:01]} 39. f6 {[%emt 0:01:10]} ({Inferior is} 39. Rhg7+ Kf8 40. Rcf7+ Ke8 41. Re7+ Kf8 42. Rgf7+ Kg8 43. Rg7+ Kf8 44. Rgf7+ Kg8 45. Rg7+ Kf8 $11) 39... e1=N+ {[%emt 0:01:49] [#]} 40. Kf2 $1 {[%emt 0:00:42]} Nd3+ {[%emt 0:00:00] [#]} 41. Kg2 $1 {[%emt 0:40:25]} Ne1+ {[%emt 0:00:00]} 42. Kh1 {[%emt 0:00:00] An entertaining game by Makkar.   Weighted Error Value: White=0.23 (precise) /Black=0.45} 1-0